Cogmind - Beta 9.2 @@@ ROGUE MODE // 2019.11.20 @ 16:08:47 Player: MorbOx Result: Self-destructed Performance ------------- Evolutions (1) 500 Regions Visited (3) 600 Robots Destroyed (18) 90 Value Destroyed (306) 306 Prototype IDs (0) 0 Alien Tech Used (0) 0 Bonus (0) 0 TOTAL SCORE: 1496 Bonus ------- None Cogmind --------- Core Integrity 302/400 Matter 284/300 Energy 100/100 System Corruption 0% Temperature Cool (0) Movement Core (550) Ox10 Location -9/Materials Parts ------- > --- POWER (2) -------- (None) > --- PROPULSION (2) --- (None) > --- UTILITY (3) ------ High-capacity Storage Unit Seismic Analyzer Terrain Scan Processor > --- WEAPON (2) ------- Light Assault Rifle > --- INVENTORY (12) --- Ion Engine Wheel Recalibrator Peak State ------------ > --- POWER ------------ Light Ion Engine Light Nuclear Core > --- PROPULSION ------- Light Treads Light Treads > --- UTILITY ---------- High-capacity Storage Unit Terrain Scan Processor Tractor Beam > --- WEAPON ----------- Light Assault Rifle > --- INVENTORY -------- Ion Engine Wheel Seismic Analyzer Recalibrator [Rating: 11] Favorites ----------- Power Ion Engine Engine Ion Engine Power Core Light Nuclear Core Propulsion Light Treads Treads Light Treads Utility High-capacity Storage Unit Device Tractor Beam Storage High-capacity Storage Unit Processor Terrain Scan Processor Weapon Assault Rifle Ballistic Gun Assault Rifle Build | -11 -10 -10 -9 ------- Run | Scr Mat Min Mat Slots Evolved 2 | . . . 2 Power 1 | . . . 1 Propulsion . | . . . . Utility 1 | . . . 1 Weapon . | . . . . Parts Attached 17 | 7 5 2 3 Power 4 | 1 1 1 1 Engine 3 | 1 1 . 1 Core 1 | . . 1 . Reactor . | . . . . Propulsion 3 | 2 1 . . Treads 3 | 2 1 . . Leg . | . . . . Wheel . | . . . . Hover . | . . . . Flight . | . . . . Utility 5 | 2 1 . 2 Device 1 | 1 . . . Storage 2 | 1 1 . . Processor 2 | . . . 2 Hackware . | . . . . Protection . | . . . . Artifact . | . . . . Weapon 5 | 2 2 1 . Energy Gun . | . . . . Energy Cannon . | . . . . Ballistic Gun 5 | 2 2 1 . Ballistic Cannon . | . . . . Launcher . | . . . . Special Weapon . | . . . . Impact Weapon . | . . . . Slashing Weapon . | . . . . Piercing Weapon . | . . . . Special Melee Weapon . | . . . . Unidentified Prototypes . | . . . . Parts Lost 5 | . . 1 4 Power 2 | . . . 2 Propulsion 2 | . . . 2 Utility . | . . . . Weapon 1 | . . 1 . Highest Loss Streak 4 | . . 1 4 Average Slot Usage (%) 92 | . 99 85 81 Engine 9 | . 14 . 9 Core 5 | . . 13 10 Treads 26 | . 27 28 18 Device 12 | . 14 14 . Storage 13 | . 14 14 11 Processor 2 | . . . 20 Ballistic Gun 21 | . 27 14 11 Naked Turns . | . . . . Heaviest Build 42 | 13 42 40 41 Greatest Support 40 | 40 40 40 40 Greatest Overweight (x) 12 | . 2 . 12 Average Overweight (x) . | . . . 1 Largest Inventory Capacity 12 | 6 12 12 12 Average Capacity 10 | 5 11 12 12 Most Carried 7 | 4 6 7 5 Average Carried 3 | 1 2 6 3 Final Capacity 12 | 6 12 12 12 Final Carried 6 | 2 6 6 3 Class Distribution -------------------- 89% | Mutant 10% | Scavenger-Mutant Dominant Class ---------------- Mutant | -10/Materials Mutant | -10/Mines Scavenger-Mutant | -9/Materials Resources | -11 -10 -10 -9 ----------- Run | Scr Mat Min Mat Matter Collected 641 | 292 266 83 . Remotely 498 | 149 266 83 . Salvage Created 521 | 107 294 120 . Parts 34 | 8 20 6 . Haulers Intercepted . | . . . . Recyclers Shooed 2 | . . 1 1 Parts Field Recycled . | . . . . Retrieved Matter . | . . . . Parts Self-Destructed . | . . . . Prevented . | . . . . Kills | -11 -10 -10 -9 ------- Run | Scr Mat Min Mat Combat Hostiles Destroyed 7 | . 5 2 . Guns 7 | . 5 2 . Classes Destroyed 8 | 3 5 . . Worker 6 | 2 2 2 . Builder 1 | . 1 . . Tunneler 1 | 1 . . . Recycler 1 | 1 . . . Mechanic 1 | . 1 . . Watcher 1 | . 1 . . Swarmer 1 | . 1 . . Grunt 6 | . 4 2 . Best Kill Streak 9 | 2 5 9 . Combat Bots Only 3 | . 3 2 . Max Kills in Single Turn 1 | 1 1 1 . Gunslinging . | . . . . Exploded . | . . . . Melee . | . . . . Uniques/NPCs Destroyed . | . . . . Combat | -11 -10 -10 -9 -------- Run | Scr Mat Min Mat Damage Taken 946 | . 563 90 293 Core 231 | . 110 23 98 Absorbed by Shields . | . . . . Core Remaining (%) 73 | 100 . 46 . Volleys Fired 64 | 10 37 11 6 Largest 2 | 2 2 2 1 Hottest 40 | 40 40 40 20 Shots Fired 113 | 20 74 13 6 Gun 113 | 20 74 13 6 Cannon . | . . . . Launcher . | . . . . Special . | . . . . Kinetic 113 | 20 74 13 6 Thermal . | . . . . Explosive . | . . . . Electromagnetic . | . . . . Robot Hit Streak 12 | 3 12 11 4 Robot Miss Streak 3 | 3 3 1 1 Penetration Max . | . . . . Secondary Targets 1 | . 1 . . Max Gunslinging Chain 1 | . 1 . . Shots Hit Robots 80 | 12 52 11 5 Core Hits 33 | 8 17 8 . Critical Hits . | . . . . Critical Kills . | . . . . Critical Parts Destroyed . | . . . . Melee Attacks . | . . . . Impact . | . . . . Slashing . | . . . . Piercing . | . . . . Sneak Attacks . | . . . . Combat Hostiles . | . . . . Follow-up Attacks . | . . . . Damage Inflicted 974 | 128 659 147 40 Guns 974 | 128 659 147 40 Cannons . | . . . . Explosions . | . . . . Melee . | . . . . Ramming . | . . . . Kinetic 974 | 128 659 147 40 Thermal . | . . . . Explosive . | . . . . Electromagnetic . | . . . . Impact . | . . . . Slashing . | . . . . Piercing . | . . . . Highest Corruption . | . . . . Average Corruption . | . . . . Corruption Purged . | . . . . Overload Shots . | . . . . Overflow Damage . | . . . . Projectiles . | . . . . Explosions . | . . . . Melee . | . . . . Knockbacks . | . . . . Impact . | . . . . Kinetic . | . . . . Secondary . | . . . . Self-Inflicted Damage . | . . . . Shots . | . . . . Rammed . | . . . . Targets Rammed . | . . . . Kicked . | . . . . Crushed . | . . . . Highest Temperature 18 | . 18 10 8 Average Temperature 7 | . 8 4 4 Received Heat Transfer 393 | . 318 48 27 Siege Activations . | . . . . Robots Corrupted . | . . . . Combat Hostiles . | . . . . Parts Fried . | . . . . Impact Corruptions . | . . . . Robots Melted . | . . . . Combat Hostiles . | . . . . Parts Melted . | . . . . Heat Transferred . | . . . . Parts Sabotaged . | . . . . Parts Stolen . | . . . . Parts Stripped . | . . . . Power Chain Reactions . | . . . . Missiles Intercepted . | . . . . Alert | -11 -10 -10 -9 ------- Run | Scr Mat Min Mat Peak Influence 157 | 20 157 111 57 Average Influence 56 | 5 45 108 40 Maximum Alert Level . | . . . . Low Security (%) 100 | 100 100 100 100 Level 1 . | . . . . Level 2 . | . . . . Level 3 . | . . . . Level 4 . | . . . . Level 5 . | . . . . High Security . | . . . . Max Security . | . . . . Squads Dispatched 1 | . . . 1 Investigation . | . . . . Extermination . | . . . . Reinforcement 1 | . . . 1 Assault . | . . . . Garrison . | . . . . Intercept . | . . . . Construction Impeded . | . . . . Haulers Reinforced . | . . . . Stealth | -11 -10 -10 -9 --------- Run | Scr Mat Min Mat Distress Signals 4 | . 2 . 2 Communications Jammed . | . . . . Distress Signals . | . . . . Times Spotted 20 | . 12 2 6 Peak Tracking Total 6 | . 5 2 6 Tactical Retreats 1 | . . . 1 Traps | -11 -10 -10 -9 ------- Run | Scr Mat Min Mat Traps Triggered 2 | . 2 . . Indirectly . | . . . . Trap Hack Attempts . | . . . . Triggered . | . . . . Disarmed . | . . . . Reprogrammed . | . . . . Reused . | . . . . Traps Extracted . | . . . . Installed . | . . . . Triggered . | . . . . Machines | -11 -10 -10 -9 ---------- Run | Scr Mat Min Mat Machines Disabled . | . . . . Max in Single Turn . | . . . . Machines Sabotaged . | . . . . Garrisons Compromised . | . . . . Overloaded Fab Kills . | . . . . Fab Network Shutdowns . | . . . . Hacking | -11 -10 -10 -9 --------- Run | Scr Mat Min Mat Machines Accessed 2 | . 2 . . Terminals 1 | . 1 . . Fabricators . | . . . . Repair Stations . | . . . . Recycling Units 1 | . 1 . . Scanalyzers . | . . . . Garrison Access . | . . . . Total Hacks 3 | . 3 . . Successful 2 | . 2 . . Failed 1 | . 1 . . Catastrophic . | . . . . Database Lockouts . | . . . . Manual . | . . . . Terminals 2 | . 2 . . Fabricators . | . . . . Repair Stations . | . . . . Recycling Units 1 | . 1 . . Scanalyzers . | . . . . Garrison Access . | . . . . Terminal Hacks 1 | . 1 . . Record 1 | . 1 . . Fabricator Hacks . | . . . . Repair Station Hacks . | . . . . Recycling Unit Hacks 1 | . 1 . . Report Inventory 1 | . 1 . . Scanalyzer . | . . . . Garrison Access Hacks . | . . . . Unauthorized Hacks . | . . . . Terminals . | . . . . Fabricators . | . . . . Repair Stations . | . . . . Recycling Units . | . . . . Scanalyzers . | . . . . Garrison Access . | . . . . Data Cores Recovered . | . . . . Used . | . . . . Hacking Detections . | . . . . Full Trace Events . | . . . . Feedback Events . | . . . . Feedback Blocked . | . . . . Robot Schematics Acquired . | . . . . Robots Built . | . . . . Matter . | . . . . Time . | . . . . Total Robot Build Rating . | . . . . Part Schematics Acquired . | . . . . Parts Built . | . . . . Matter . | . . . . Time . | . . . . Total Part Build Rating . | . . . . Parts Repaired . | . . . . Time . | . . . . Parts Recycled . | . . . . Recycled Matter . | . . . . Retrieved Matter . | . . . . Retrieved Components . | . . . . Parts Scanalyzed . | . . . . Part Schematics Acquired . | . . . . Parts Damaged . | . . . . Bothacking | -11 -10 -10 -9 ------------ Run | Scr Mat Min Mat Used RIF Installer . | . . . . Robots Hacked . | . . . . Non-combat . | . . . . Combat . | . . . . Robot Hacks Applied . | . . . . Relay Couplers Released . | . . . . Robots Rewired . | . . . . Allies Hacked . | . . . . Hacks Repelled . | . . . . Allies | -11 -10 -10 -9 -------- Run | Scr Mat Min Mat Total Allies . | . . . . Largest Group . | . . . . Highest-Rated Group . | . . . . Highest-Rated Ally . | . . . . Total Orders . | . . . . Ally Attacks . | . . . . Total Damage . | . . . . Kills . | . . . . Allies Corrupted . | . . . . Allies Melted . | . . . . Intel | -11 -10 -10 -9 ------- Run | Scr Mat Min Mat Robot Analysis Total . | . . . . Derelict Logs Recovered . | . . . . Drone Launches . | . . . . Drone Recoveries . | . . . . Exploration | -11 -10 -10 -9 ------------- Run | Scr Mat Min Mat Turns Passed 1113 | 146 548 294 125 Spaces Moved 502 | 69 213 166 54 Core 32 | 29 . . 3 Treads 470 | 40 213 166 51 Legs . | . . . . Wheels . | . . . . Hover . | . . . . Flight . | . . . . Fastest Speed 50 | 50 160 160 180 Average Speed 165 | 113 177 160 204 Slowest Speed 650 | 160 200 160 650 Overloaded Moves . | . . . . Propulsion Burnouts . | . . . . Robots Hopped . | . . . . Cave-ins Triggered . | . . . . Exploration Rate (%) 18 | 6 30 30 9 Regions Visited 3 Branch Regions 1 Pre-discovered Areas . | . . . . Known Exits Taken . | . . . . Unknown Exits Taken 3 | 1 1 1 . Scrap Searched 1 | . . 1 . Spaces Dug . | . . . . Terrain Destroyed . | . . . . Melee . | . . . . Projectile . | . . . . AOE . | . . . . Actions | -11 -10 -10 -9 --------- Run | Scr Mat Min Mat Total 672 | 117 309 182 64 Wait 71 | 26 45 . . Move 499 | 68 212 165 54 Hop . | . . . . Pick Up 16 | 6 8 2 . Fast Attach 3 | 3 . . . Attach 9 | 4 2 . 3 Detach . | . . . . Swap 5 | . 3 2 . Drop 5 | . 2 2 1 Fire 64 | 10 37 11 6 Melee . | . . . . Ram . | . . . . Kick . | . . . . Crush . | . . . . Escape Stasis . | . . . . Rewire . | . . . . Trap . | . . . . Miscellaneous . | . . . . Route ------- -11/Scrapyard -10/Materials (discovered 2 exits: [*Min x2]) -10/Mines -9/Materials (discovered 1 exit: [*Min]) History --------- Turn | Location | Event 13 | -11/Scrapyard | Discovered new exit (range 16) 147 | -11/Scrapyard | Entered Materials 309 | -10/Materials | Build established: Mutant 621 | -10/Materials | Discovered new exit (range 7) 691 | -10/Materials | Discovered new exit (range 16) 695 | -10/Materials | Entered Mines 700 | -10/Mines | Core integrity fell below 50% 748 | -10/Mines | Met a Derelict bent on vengeance 761 | -10/Mines | Discovered new exit (range 8) 989 | -10/Mines | Entered Materials 989 | -9/Materials | Evolved 2 slots: Power x1, Utility x1 1081 | -9/Materials | Discovered new exit (range 15) 1114 | -9/Materials | Self-destructed Last Messages --------------- 00838_ Acquired 10 matter. 00839_ Dropped Assault Rifle. PARAMETERS=POWER_1,UTILITY_1 LOCATION=UNKNOWN GOAL=ESCAPE 00991_ Dropped Tractor Beam. 01038_ O-16 Technician: "IFF HANDSHAKE FAILED. SECURING TERMINAL." 01041_ ALERT: Hostiles spotted, dispatching reinforcements to Terminal M002. 01058_ R-06 Scavenger collects Tractor Beam. 01081_ EXIT=FOUND 01088_ S-10 Pest destroyed. 01092_ Lgt. Treads destroyed. 01093_ Lgt. Ion Engine destroyed. 01095_ Lgt. Treads destroyed. 01095_ R-06 Scavenger collects Flight Unit. 01095_ R-06 Scavenger collects Lgt. Assault Rifle. 01099_ R-06 Scavenger collects Lgt. Ion Engine. 01103_ Lgt. Nuclear Core destroyed. 01109_ W-16 Scout sends out distress signal. Map ----- +----------------------------------------------------+ | ?????????????????????????????????????????????????? | | ?????????????????????????????????????????????????? | | ?????????????????????????????????????????????????? | | ?????????????????????????????????????????????????? | | ?????????????????????????????????????????????????? | | ?????????????????????????????????????????????????? | | ?????????????????????????????????????????????????? | | ?????????????????????????????????????????????????? | | ?????????????????????????????????????????????????? | | ?????????????????????????????????????????????????? | | ????????????? < ???????????????????????????????? | | ????????????? ???????????????????????????????? | | ????????????? ???????????????????????????????? | | ????????????? ???????????????????????????????? | | ?????????????# #???????????????????????????????? | | ?????####????# #???????????????????????????????? | | ?????#[[!!???# #???????????????????????????????? | | ?????#[[!!!??# #???????????????????????????????? | | ??????? ## ##??????????????????????????????? | | ???????? # #??????????????????????????????? | | ????????? ???????????????????????????????? | | ??????????? ???????????????????????????????? | | ???????????? !????????????????????????????????? | | ????????????? ????????????????????????????????? | | ?????????????##/############?????????????????????? | | ?????????????# s @ #?????????????????????? | | ?????????????# % s #?????????????????????? | | ?????????????#""" """ """ g ????????????????????? | | ?????????????#"R """ """ # ???????????????????? | | ?????????????#""" """ """ # ??????????????????? | | ?????????????# +? ????????????????? | | ????################+############w???????????????? | | ? #? ????? ??????????????? | | ? # """"" ?????u ????????????? | | ? # ""T"" #????#???????????? | | ????####+########## + #????????????????? | | ??????????????????# # """ """ #????????????????? | | ??????????????????# # """ ""???????????????????? | | ????????????####### #?""" "????????????????????? | | ????????????# # #? ????????????????????? | | ????????????# # ########???????????????????? | | ????????????# # # #???????????????????? | | ????????????# """ + + #???????????????????? | | ????????????# """ # # #???????????????????? | | ????????????# """ # # #???????????????????? | | ????????????# # #? #???????????????????? | | ????????????###########? #???????????????????? | | ?????????????????????????#####???????????????????? | | ?????????????????????????????????????????????????? | | ?????????????????????????????????????????????????? | +----------------------------------------------------+ Best States ------------- Heat Dissipation 28 Energy Generation 19 Energy Capacity 250 Matter Stores 300 Matter Capacity 300 Sight Range 16 Terrain Scan Density 135 Evasion (%) 50 Recoil Reduction 2 Item Schematics ----------------- None Robot Schematics ------------------ None Fabricated ------------ Nothing Alien Tech Used ----------------- None Achievements -------------- Use The Force Challenges ------------ None Game ------ Seed FluxNetworkPod Manual? 0 Play Time 00:09:33 Cumulative 8.9 hours Start 2019.11.20 @ 16:00:13 End 2019.11.20 @ 16:08:47 Sessions 1 Manual Loads 0 Difficulty Rogue Special Mode None Game No. 21 Rogue 21 Adventurer 0 Explorer 0 Win Type - Total 0 Types 0/0/0/0/0/0/0 Lore% 13 Gallery% 13 Achievement% 10 Wizard Run 0 Options --------- ASCII 0 Keyboard 0 Movement Arrows Keybinds 0 Fullscreen 2 Font 18/SmallcapsGlow Map View 76x50 Tactical HUD 1 Map Filters NONE Filters NONE Steam 1 RUN: f01552be-1c71-42d5-9c5b-e11ec3f2241f